[Event "*** SCC Grand Prix: Titled Tuesday Blitz"]
[Site "Chess.com"]
[Date "2020.06.23"]
[Round "7"]
[White "SHIVACalypso"]
[Black "Efremov_Vlad"]
[Result "1-0"]
[WhiteElo "2354"]
[BlackElo "2193"]
[TimeControl "180+1"]
[EndTime "11:16:38 PDT"]
[Termination "SHIVACalypso won by resignation"]

1. Nf3 {[%clk 0:03:00.9]} 1... d5 {[%clk 0:02:59.4]} 2. c4 {[%clk 0:02:56.8]}
2... e6 {[%clk 0:02:58.8]} 3. g3 {[%clk 0:02:56.4]} 3... Nf6 {[%clk 0:02:58.9]}
4. Bg2 {[%clk 0:02:53.1]} 4... dxc4 {[%clk 0:02:59.1]} 5. Qa4+ {[%clk 0:02:52]}
5... Bd7 {[%clk 0:02:57.1]} 6. Qxc4 {[%clk 0:02:52.5]} 6... c5 {[%clk
0:02:57.7]} 7. O-O {[%clk 0:02:52.3]} 7... Bc6 {[%clk 0:02:57.1]} 8. d3 {[%clk
0:02:42]} 8... Nbd7 {[%clk 0:02:56.8]} 9. a3 {[%clk 0:02:36.1]} 9... Be7 {[%clk
0:02:55.9]} 10. b4 {[%clk 0:02:32.3]} 10... b5 {[%clk 0:02:51.5]} 11. Qb3 {[%clk
0:02:23]} 11... O-O {[%clk 0:02:46.4]} 12. Bb2 {[%clk 0:02:16.6]} 12... a5
{[%clk 0:02:40.4]} 13. bxc5 {[%clk 0:02:01.3]} 13... Nxc5 {[%clk 0:02:38.8]} 14.
Qc2 {[%clk 0:02:01.3]} 14... Rc8 {[%clk 0:02:37.3]} 15. Nbd2 {[%clk 0:01:59.8]}
15... Bb7 {[%clk 0:02:32.2]} 16. Rfc1 {[%clk 0:01:39.9]} 16... Na4 {[%clk
0:02:31.6]} 17. Qb1 {[%clk 0:01:40.3]} 17... Nxb2 {[%clk 0:02:30.5]} 18. Qxb2
{[%clk 0:01:41.2]} 18... Qb6 {[%clk 0:02:29.4]} 19. Nd4 {[%clk 0:01:16.1]} 19...
Bxg2 {[%clk 0:02:10.7]} 20. Kxg2 {[%clk 0:01:15.6]} 20... Bc5 {[%clk 0:02:05.6]}
21. N2f3 {[%clk 0:01:13]} 21... b4 {[%clk 0:02:01]} 22. axb4 {[%clk 0:01:10.1]}
22... axb4 {[%clk 0:02:01.9]} 23. e3 {[%clk 0:01:07.6]} 23... Nd5 {[%clk
0:02:01]} 24. Rc4 {[%clk 0:00:54.6]} 24... Be7 {[%clk 0:01:53.3]} 25. Rac1
{[%clk 0:00:51.1]} 25... Rxc4 {[%clk 0:01:51.2]} 26. Rxc4 {[%clk 0:00:52]} 26...
h6 {[%clk 0:01:46.6]} 27. Nc6 {[%clk 0:00:50.1]} 27... Bd6 {[%clk 0:01:38]} 28.
e4 {[%clk 0:00:45.6]} 28... Ne7 {[%clk 0:01:34.8]} 29. Nfd4 {[%clk 0:00:36.4]}
29... Nxc6 {[%clk 0:01:30.7]} 30. Nxc6 {[%clk 0:00:31.2]} 30... Ra8 {[%clk
0:01:20.2]} 31. d4 {[%clk 0:00:28.3]} 31... Bf8 {[%clk 0:01:16.7]} 32. d5 {[%clk
0:00:25.8]} 32... exd5 {[%clk 0:01:14.2]} 33. exd5 {[%clk 0:00:26.7]} 33... b3
{[%clk 0:01:03.2]} 34. Nd4 {[%clk 0:00:20.1]} 34... Qb5 {[%clk 0:00:53.5]} 35.
Nxb5 {[%clk 0:00:17.3]} 1-0

[Event "*** SCC Grand Prix: Titled Tuesday Blitz"]
[Site "Chess.com"]
[Date "2020.06.23"]
[Round "7"]
[White "eightbyeightchess"]
[Black "davidkalashian"]
[Result "0-1"]
[WhiteElo "2407"]
[BlackElo "2636"]
[TimeControl "180+1"]
[EndTime "11:16:40 PDT"]
[Termination "davidkalashian won by resignation"]

1. e4 {[%clk 0:03:00.9]} 1... c6 {[%clk 0:02:58.5]} 2. d4 {[%clk 0:03:00.5]}
2... g6 {[%clk 0:02:58.9]} 3. Nc3 {[%clk 0:02:58.9]} 3... Bg7 {[%clk 0:02:59.3]}
4. Be3 {[%clk 0:02:57.2]} 4... d6 {[%clk 0:02:58.7]} 5. Qd2 {[%clk 0:02:56.9]}
5... Nd7 {[%clk 0:02:53]} 6. a4 {[%clk 0:02:51.8]} 6... Ngf6 {[%clk 0:02:50.4]}
7. h3 {[%clk 0:02:48.9]} 7... e5 {[%clk 0:02:48.9]} 8. Nf3 {[%clk 0:02:48.3]}
8... O-O {[%clk 0:02:46.3]} 9. Be2 {[%clk 0:02:48.2]} 9... exd4 {[%clk 0:02:42]}
10. Nxd4 {[%clk 0:02:46.4]} 10... Re8 {[%clk 0:02:39]} 11. Bf3 {[%clk 0:02:37]}
11... Nc5 {[%clk 0:02:24.7]} 12. O-O {[%clk 0:02:23.3]} 12... Nfxe4 {[%clk
0:02:21.6]} 13. Nxe4 {[%clk 0:02:22]} 13... Nxe4 {[%clk 0:02:22.5]} 14. Qc1
{[%clk 0:02:13.5]} 14... d5 {[%clk 0:02:18.5]} 15. c3 {[%clk 0:02:12.1]} 15...
Nd6 {[%clk 0:02:00.1]} 16. Bh6 {[%clk 0:02:10.7]} 16... Nf5 {[%clk 0:01:57.1]}
17. Nxf5 {[%clk 0:02:08.9]} 17... Bxf5 {[%clk 0:01:58]} 18. Bxg7 {[%clk
0:02:08.9]} 18... Kxg7 {[%clk 0:01:58.9]} 19. Qf4 {[%clk 0:02:08.8]} 19... Qb8
{[%clk 0:01:54.6]} 20. Qb4 {[%clk 0:02:04.8]} 20... Qc7 {[%clk 0:01:48.2]} 21.
Rfe1 {[%clk 0:02:02.3]} 21... a6 {[%clk 0:01:42.6]} 22. a5 {[%clk 0:01:59.2]}
22... Qd7 {[%clk 0:01:38.2]} 23. Qd4+ {[%clk 0:01:57.8]} 23... Kg8 {[%clk
0:01:36.7]} 24. b4 {[%clk 0:01:51.2]} 24... Rxe1+ {[%clk 0:01:34.5]} 25. Rxe1
{[%clk 0:01:52.1]} 25... Re8 {[%clk 0:01:33.9]} 26. Re5 {[%clk 0:01:44.5]} 26...
Rxe5 {[%clk 0:01:26.7]} 27. Qxe5 {[%clk 0:01:45.4]} 27... h5 {[%clk 0:01:25.4]}
28. Qb8+ {[%clk 0:01:35.2]} 28... Kg7 {[%clk 0:01:23.9]} 29. Qe5+ {[%clk
0:01:35.6]} 29... Kg8 {[%clk 0:01:23.9]} 30. Qb8+ {[%clk 0:01:35.3]} 30... Kg7
{[%clk 0:01:22.6]} 31. Qe5+ {[%clk 0:01:36.2]} 31... f6 {[%clk 0:01:23]} 32. Qd4
{[%clk 0:01:24.9]} 32... Qe7 {[%clk 0:01:21.4]} 33. Qe3 {[%clk 0:01:05]} 33...
Qxe3 {[%clk 0:01:10]} 34. fxe3 {[%clk 0:01:05.9]} 34... h4 {[%clk 0:01:07.9]}
35. Kf2 {[%clk 0:01:04.7]} 35... g5 {[%clk 0:01:07.3]} 36. Be2 {[%clk
0:01:03.3]} 36... Kf7 {[%clk 0:01:04.9]} 37. Bf1 {[%clk 0:01:00.9]} 37... Ke7
{[%clk 0:01:03.9]} 38. g3 {[%clk 0:01:01]} 38... Kd6 {[%clk 0:00:59.3]} 39. gxh4
{[%clk 0:01:00.2]} 39... gxh4 {[%clk 0:01:00.2]} 40. Kf3 {[%clk 0:01:00.7]}
40... Ke5 {[%clk 0:00:59.8]} 41. c4 {[%clk 0:00:52.3]} 41... dxc4 {[%clk
0:00:54.1]} 42. Bxc4 {[%clk 0:00:53.2]} 42... Bxh3 {[%clk 0:00:53.7]} 43. Bd3
{[%clk 0:00:48]} 43... Bf5 {[%clk 0:00:49.3]} 44. e4 {[%clk 0:00:43.6]} 44...
Be6 {[%clk 0:00:42.8]} 0-1

[Event "*** SCC Grand Prix: Titled Tuesday Blitz"]
[Site "Chess.com"]
[Date "2020.06.23"]
[Round "7"]
[White "tsvet2005"]
[Black "AttilaTurzo"]
[Result "1/2-1/2"]
[WhiteElo "2635"]
[BlackElo "2505"]
[TimeControl "180+1"]
[EndTime "11:16:41 PDT"]
[Termination "Game drawn by repetition"]

1. d4 {[%clk 0:03:00.9]} 1... Nf6 {[%clk 0:02:57.7]} 2. c4 {[%clk 0:02:59.3]}
2... g6 {[%clk 0:02:48.7]} 3. Nc3 {[%clk 0:02:59.3]} 3... d5 {[%clk 0:02:46.2]}
4. Nf3 {[%clk 0:02:59]} 4... Bg7 {[%clk 0:02:46]} 5. h4 {[%clk 0:02:58.5]} 5...
O-O {[%clk 0:02:41]} 6. cxd5 {[%clk 0:02:57.8]} 6... Nxd5 {[%clk 0:02:40.5]} 7.
h5 {[%clk 0:02:58.4]} 7... c5 {[%clk 0:02:38.1]} 8. hxg6 {[%clk 0:02:54.8]} 8...
hxg6 {[%clk 0:02:37.8]} 9. Bh6 {[%clk 0:02:54.3]} 9... cxd4 {[%clk 0:02:34.6]}
10. Bxg7 {[%clk 0:02:51.5]} 10... Kxg7 {[%clk 0:02:34.3]} 11. Nxd5 {[%clk
0:01:42.2]} 11... Qxd5 {[%clk 0:02:32.7]} 12. Qd2 {[%clk 0:01:42.8]} 12... g5
{[%clk 0:02:16.4]} 13. Nxg5 {[%clk 0:01:37.9]} 13... Rh8 {[%clk 0:02:11.1]} 14.
Rxh8 {[%clk 0:01:26.5]} 14... Kxh8 {[%clk 0:02:12]} 15. Nf3 {[%clk 0:01:27.1]}
15... Nc6 {[%clk 0:02:07.5]} 16. Rd1 {[%clk 0:01:25.1]} 16... Be6 {[%clk
0:01:52.1]} 17. Nxd4 {[%clk 0:01:18.3]} 17... Nxd4 {[%clk 0:01:43.8]} 18. Qxd4+
{[%clk 0:01:19.2]} 18... Qxd4 {[%clk 0:01:43.3]} 19. Rxd4 {[%clk 0:01:20.1]}
19... Bxa2 {[%clk 0:01:42.9]} 20. Rd7 {[%clk 0:01:06.5]} 20... b5 {[%clk
0:01:30.4]} 21. Rxe7 {[%clk 0:00:59.6]} 21... a5 {[%clk 0:01:30.5]} 22. e4
{[%clk 0:00:53.3]} 22... b4 {[%clk 0:01:28.8]} 23. Bb5 {[%clk 0:00:51.7]} 23...
a4 {[%clk 0:01:25.2]} 24. Kd2 {[%clk 0:00:21.3]} 24... a3 {[%clk 0:01:19.8]} 25.
bxa3 {[%clk 0:00:21.2]} 25... bxa3 {[%clk 0:01:16.3]} 26. Re8+ {[%clk
0:00:16.8]} 26... Rxe8 {[%clk 0:01:13.7]} 27. Bxe8 {[%clk 0:00:17.7]} 27... Bd5
{[%clk 0:01:05.4]} 28. Kc3 {[%clk 0:00:10.8]} 28... Bxe4 {[%clk 0:01:02.3]} 29.
Bxf7 {[%clk 0:00:10.6]} 29... Bxg2 {[%clk 0:01:01.3]} 30. Kb3 {[%clk 0:00:11.1]}
30... Kg7 {[%clk 0:00:58.1]} 31. Kxa3 {[%clk 0:00:07.4]} 31... Kxf7 {[%clk
0:00:57.9]} 32. f3 {[%clk 0:00:08.3]} 32... Kf6 {[%clk 0:00:57.2]} 33. Kb4
{[%clk 0:00:07.8]} 33... Ke5 {[%clk 0:00:57.1]} 34. Kc3 {[%clk 0:00:08.7]} 34...
Kf4 {[%clk 0:00:57.4]} 35. Kb4 {[%clk 0:00:09.6]} 35... Bh3 {[%clk 0:00:57.9]}
36. Kc3 {[%clk 0:00:10.5]} 36... Bf5 {[%clk 0:00:58.6]} 37. Kb4 {[%clk
0:00:11.4]} 37... Be6 {[%clk 0:00:59.4]} 38. Kc3 {[%clk 0:00:12.3]} 38... Bf5
{[%clk 0:00:59.8]} 39. Kb4 {[%clk 0:00:13.2]} 39... Be6 {[%clk 0:01:00.7]} 40.
Kc3 {[%clk 0:00:14.1]} 40... Bf5 {[%clk 0:01:01.6]} 1/2-1/2

[Event "*** SCC Grand Prix: Titled Tuesday Blitz"]
[Site "Chess.com"]
[Date "2020.06.23"]
[Round "7"]
[White "Grandmaster2B"]
[Black "AGW2016"]
[Result "1-0"]
[WhiteElo "2417"]
[BlackElo "2233"]
[TimeControl "180+1"]
[EndTime "11:16:41 PDT"]
[Termination "Grandmaster2B won by resignation"]

1. e4 {[%clk 0:02:33.4]} 1... c5 {[%clk 0:02:56.9]} 2. Nf3 {[%clk 0:02:29.8]}
2... d6 {[%clk 0:02:57.4]} 3. d4 {[%clk 0:02:30]} 3... cxd4 {[%clk 0:02:58.3]}
4. Nxd4 {[%clk 0:02:30.6]} 4... Nf6 {[%clk 0:02:58.4]} 5. Nc3 {[%clk 0:02:31.2]}
5... Nc6 {[%clk 0:02:58.1]} 6. f3 {[%clk 0:02:30]} 6... e6 {[%clk 0:02:54.2]} 7.
Be3 {[%clk 0:02:29.3]} 7... Be7 {[%clk 0:02:53.5]} 8. Qd2 {[%clk 0:02:29.7]}
8... d5 {[%clk 0:02:53.8]} 9. exd5 {[%clk 0:02:15.2]} 9... exd5 {[%clk
0:02:52.6]} 10. Be2 {[%clk 0:02:07.6]} 10... O-O {[%clk 0:02:51.6]} 11. O-O
{[%clk 0:02:08.1]} 11... Re8 {[%clk 0:02:44.7]} 12. Rfe1 {[%clk 0:02:06.7]}
12... Bc5 {[%clk 0:02:41.8]} 13. Bf2 {[%clk 0:01:46.6]} 13... Bb6 {[%clk
0:02:29.9]} 14. Bb5 {[%clk 0:01:40.8]} 14... Rxe1+ {[%clk 0:02:25.3]} 15. Rxe1
{[%clk 0:01:41.7]} 15... Bd7 {[%clk 0:02:25.7]} 16. Bf1 {[%clk 0:01:36.9]} 16...
Rc8 {[%clk 0:01:42.3]} 17. Nce2 {[%clk 0:01:28.1]} 17... Qe7 {[%clk 0:01:19.8]}
18. Nf4 {[%clk 0:01:20.5]} 18... Qc5 {[%clk 0:01:16.9]} 19. c3 {[%clk
0:01:18.2]} 19... Qa5 {[%clk 0:01:00.1]} 20. b4 {[%clk 0:00:49.2]} 20... Qa3
{[%clk 0:00:36.3]} 21. Nb5 {[%clk 0:00:47.9]} 21... Qa4 {[%clk 0:00:26.7]} 22.
Nxd5 {[%clk 0:00:35.4]} 22... Bxf2+ {[%clk 0:00:24]} 23. Kxf2 {[%clk 0:00:32.7]}
23... Nxd5 {[%clk 0:00:23.2]} 24. Qxd5 {[%clk 0:00:33.3]} 24... Be6 {[%clk
0:00:22.2]} 25. Rxe6 {[%clk 0:00:27.6]} 25... Qc2+ {[%clk 0:00:18.4]} 26. Re2
{[%clk 0:00:26.6]} 26... Qg6 {[%clk 0:00:17.8]} 27. Qe4 {[%clk 0:00:22.3]} 27...
Qf6 {[%clk 0:00:18.1]} 28. Qe8+ {[%clk 0:00:22]} 1-0

[Event "*** SCC Grand Prix: Titled Tuesday Blitz"]
[Site "Chess.com"]
[Date "2020.06.23"]
[Round "7"]
[White "Msb2"]
[Black "keshka01"]
[Result "1-0"]
[WhiteElo "2850"]
[BlackElo "2581"]
[TimeControl "180+1"]
[EndTime "11:16:44 PDT"]
[Termination "Msb2 won by resignation"]

1. d4 {[%clk 0:03:00.9]} 1... d6 {[%clk 0:02:59.7]} 2. Nf3 {[%clk 0:03:00.8]}
2... Nf6 {[%clk 0:02:59.4]} 3. c4 {[%clk 0:03:01.4]} 3... g6 {[%clk 0:02:59]} 4.
Nc3 {[%clk 0:03:01.9]} 4... Bf5 {[%clk 0:02:59.2]} 5. d5 {[%clk 0:03:01.7]} 5...
Bg7 {[%clk 0:02:40.2]} 6. Nd4 {[%clk 0:03:01.5]} 6... Bd7 {[%clk 0:02:39]} 7. e4
{[%clk 0:03:01.6]} 7... O-O {[%clk 0:02:37.5]} 8. Be2 {[%clk 0:03:01.7]} 8... e6
{[%clk 0:02:34.6]} 9. O-O {[%clk 0:02:59.4]} 9... exd5 {[%clk 0:02:27.2]} 10.
exd5 {[%clk 0:03:00.3]} 10... Na6 {[%clk 0:02:23]} 11. Bf3 {[%clk 0:02:58.9]}
11... Re8 {[%clk 0:02:18.6]} 12. Bf4 {[%clk 0:02:51.6]} 12... Nc5 {[%clk
0:02:15.1]} 13. Qc2 {[%clk 0:02:26.5]} 13... Nfe4 {[%clk 0:01:46.4]} 14. Nxe4
{[%clk 0:02:21.3]} 14... Nxe4 {[%clk 0:01:45.1]} 15. Rad1 {[%clk 0:02:04.7]}
15... Qf6 {[%clk 0:01:12.1]} 16. Be3 {[%clk 0:02:03.6]} 16... Bf5 {[%clk
0:00:57.9]} 17. Nxf5 {[%clk 0:02:01]} 17... Qxf5 {[%clk 0:00:58.8]} 18. Rfe1
{[%clk 0:01:54.6]} 18... Re7 {[%clk 0:00:48.1]} 19. Re2 {[%clk 0:01:41.8]} 19...
Rae8 {[%clk 0:00:41.2]} 20. Rde1 {[%clk 0:01:42]} 20... Nf6 {[%clk 0:00:15.3]}
21. Qxf5 {[%clk 0:01:33]} 21... gxf5 {[%clk 0:00:16.2]} 22. Bxa7 {[%clk
0:01:17.4]} 22... Rxe2 {[%clk 0:00:15.7]} 23. Rxe2 {[%clk 0:01:18.3]} 23... Ra8
{[%clk 0:00:16.1]} 24. Bd4 {[%clk 0:01:18]} 24... Rxa2 {[%clk 0:00:15.6]} 25. g3
{[%clk 0:01:14.1]} 25... Kf8 {[%clk 0:00:15.7]} 26. Kg2 {[%clk 0:01:12.9]} 26...
Ra8 {[%clk 0:00:15.5]} 27. b3 {[%clk 0:01:12.1]} 27... Re8 {[%clk 0:00:15]} 28.
Ra2 {[%clk 0:01:11.6]} 28... Nd7 {[%clk 0:00:13.2]} 29. Be3 {[%clk 0:01:06.3]}
29... Nc5 {[%clk 0:00:08.7]} 30. b4 {[%clk 0:01:06.2]} 30... Ne4 {[%clk
0:00:08]} 31. Ra7 {[%clk 0:01:05.9]} 31... Rb8 {[%clk 0:00:08.3]} 32. c5 {[%clk
0:01:05.8]} 32... Bc3 {[%clk 0:00:06.9]} 33. c6 {[%clk 0:00:58.9]} 33... bxc6
{[%clk 0:00:06.9]} 34. dxc6 {[%clk 0:00:59.8]} 34... Rc8 {[%clk 0:00:04.9]} 35.
b5 {[%clk 0:01:00.2]} 35... Ke7 {[%clk 0:00:04.8]} 36. b6 {[%clk 0:01:00]} 36...
Kd8 {[%clk 0:00:04.8]} 37. b7 {[%clk 0:00:59.4]} 1-0

[Event "*** SCC Grand Prix: Titled Tuesday Blitz"]
[Site "Chess.com"]
[Date "2020.06.23"]
[Round "7"]
[White "QueenOfTactics90"]
[Black "JiiHart"]
[Result "1-0"]
[WhiteElo "1955"]
[BlackElo "2155"]
[TimeControl "180+1"]
[EndTime "11:16:44 PDT"]
[Termination "QueenOfTactics90 won by checkmate"]

1. e4 {[%clk 0:03:00.9]} 1... c5 {[%clk 0:02:59.6]} 2. Nf3 {[%clk 0:02:57.3]}
2... Nc6 {[%clk 0:02:59]} 3. d4 {[%clk 0:02:56.2]} 3... cxd4 {[%clk 0:02:58.8]}
4. Nxd4 {[%clk 0:02:56.2]} 4... Nf6 {[%clk 0:02:59.3]} 5. f3 {[%clk 0:02:53.4]}
5... g6 {[%clk 0:02:43.7]} 6. c4 {[%clk 0:02:51.3]} 6... Bg7 {[%clk 0:02:42.8]}
7. Be3 {[%clk 0:02:51.4]} 7... O-O {[%clk 0:02:36.3]} 8. Nc3 {[%clk 0:02:51.4]}
8... d6 {[%clk 0:02:34.5]} 9. Be2 {[%clk 0:02:51.7]} 9... Bd7 {[%clk 0:02:22.8]}
10. O-O {[%clk 0:02:50.7]} 10... a6 {[%clk 0:02:14.3]} 11. Rc1 {[%clk
0:02:49.2]} 11... Rb8 {[%clk 0:02:12.4]} 12. g4 {[%clk 0:02:43.6]} 12... Nxd4
{[%clk 0:02:03.7]} 13. Bxd4 {[%clk 0:02:42.9]} 13... Bc6 {[%clk 0:02:01.8]} 14.
Be3 {[%clk 0:02:37.1]} 14... b5 {[%clk 0:01:56.3]} 15. cxb5 {[%clk 0:02:27.7]}
15... axb5 {[%clk 0:01:56]} 16. b4 {[%clk 0:02:28]} 16... e6 {[%clk 0:01:38.8]}
17. Qd2 {[%clk 0:02:26.8]} 17... Qd7 {[%clk 0:01:14.1]} 18. Rfd1 {[%clk
0:02:25.5]} 18... Rfd8 {[%clk 0:01:14]} 19. h4 {[%clk 0:02:01.3]} 19... d5
{[%clk 0:01:01.9]} 20. e5 {[%clk 0:01:58.3]} 20... Ne8 {[%clk 0:00:55.3]} 21. f4
{[%clk 0:01:58.3]} 21... f6 {[%clk 0:00:46.7]} 22. Bd4 {[%clk 0:01:50.1]} 22...
fxe5 {[%clk 0:00:45.1]} 23. fxe5 {[%clk 0:01:50.1]} 23... Nc7 {[%clk 0:00:22.7]}
24. Rf1 {[%clk 0:01:39.2]} 24... Rf8 {[%clk 0:00:22.4]} 25. Rxf8+ {[%clk
0:01:33.1]} 25... Bxf8 {[%clk 0:00:22.3]} 26. Nd1 {[%clk 0:01:28.7]} 26... Rc8
{[%clk 0:00:21.8]} 27. Ne3 {[%clk 0:01:26.8]} 27... Bb7 {[%clk 0:00:19.9]} 28.
g5 {[%clk 0:01:23.5]} 28... Na6 {[%clk 0:00:19.7]} 29. a3 {[%clk 0:01:21.7]}
29... Rxc1+ {[%clk 0:00:18.7]} 30. Qxc1 {[%clk 0:01:22.6]} 30... Qc6 {[%clk
0:00:19]} 31. Qd2 {[%clk 0:01:20.1]} 31... Nc7 {[%clk 0:00:17.2]} 32. Ng4 {[%clk
0:01:19.8]} 32... Be7 {[%clk 0:00:16.3]} 33. Nf6+ {[%clk 0:01:18.6]} 33... Bxf6
{[%clk 0:00:16.5]} 34. exf6 {[%clk 0:01:18.7]} 34... Kf7 {[%clk 0:00:16.2]} 35.
Bc5 {[%clk 0:01:16]} 35... Ne8 {[%clk 0:00:16.1]} 36. Qf4 {[%clk 0:01:12]} 36...
e5 {[%clk 0:00:14.5]} 37. Qxe5 {[%clk 0:01:09.6]} 37... d4 {[%clk 0:00:14.9]}
38. Qe7+ {[%clk 0:01:00.6]} 38... Kg8 {[%clk 0:00:15]} 39. Qf8# {[%clk
0:01:00.2]} 1-0

[Event "*** SCC Grand Prix: Titled Tuesday Blitz"]
[Site "Chess.com"]
[Date "2020.06.23"]
[Round "7"]
[White "Th3_Hound"]
[Black "Omk124"]
[Result "1-0"]
[WhiteElo "2539"]
[BlackElo "2380"]
[TimeControl "180+1"]
[EndTime "11:16:45 PDT"]
[Termination "Th3_Hound won by resignation"]

1. e4 {[%clk 0:03:00.9]} 1... c5 {[%clk 0:02:59.6]} 2. Nf3 {[%clk 0:02:59.6]}
2... d5 {[%clk 0:03:00]} 3. exd5 {[%clk 0:02:59.2]} 3... Qxd5 {[%clk 0:03:00]}
4. Nc3 {[%clk 0:02:59.4]} 4... Qd8 {[%clk 0:03:00]} 5. g3 {[%clk 0:02:59.1]}
5... Nf6 {[%clk 0:02:59.8]} 6. Bg2 {[%clk 0:02:59.3]} 6... e6 {[%clk 0:03:00.1]}
7. O-O {[%clk 0:02:59.3]} 7... Bd6 {[%clk 0:03:00.3]} 8. Re1 {[%clk 0:02:59.4]}
8... a6 {[%clk 0:03:00.7]} 9. d4 {[%clk 0:02:59.6]} 9... O-O {[%clk 0:03:01.3]}
10. Bg5 {[%clk 0:02:57.5]} 10... Nbd7 {[%clk 0:02:57.2]} 11. a4 {[%clk
0:02:54.8]} 11... h6 {[%clk 0:02:56.9]} 12. dxc5 {[%clk 0:02:45.8]} 12... Bxc5
{[%clk 0:02:53.5]} 13. Be3 {[%clk 0:02:46]} 13... Qc7 {[%clk 0:02:49.5]} 14. Qe2
{[%clk 0:02:43.3]} 14... Bxe3 {[%clk 0:02:43.2]} 15. Qxe3 {[%clk 0:02:43.1]}
15... Nb6 {[%clk 0:02:43.9]} 16. a5 {[%clk 0:02:35.3]} 16... Nbd5 {[%clk
0:02:40.9]} 17. Nxd5 {[%clk 0:02:35.2]} 17... Nxd5 {[%clk 0:02:41.8]} 18. Qb3
{[%clk 0:02:32.9]} 18... Bd7 {[%clk 0:02:41.3]} 19. c4 {[%clk 0:02:32.3]} 19...
Nf6 {[%clk 0:02:40.1]} 20. Ne5 {[%clk 0:02:32.2]} 20... Rab8 {[%clk 0:02:38.9]}
21. Qb6 {[%clk 0:02:29.6]} 21... Rfc8 {[%clk 0:02:33.7]} 22. Rad1 {[%clk
0:02:27.6]} 22... Be8 {[%clk 0:02:33.3]} 23. b4 {[%clk 0:02:17.7]} 23... Nd7
{[%clk 0:02:33.2]} 24. Nxd7 {[%clk 0:02:07.8]} 24... Bxd7 {[%clk 0:02:32.3]} 25.
c5 {[%clk 0:02:08]} 25... Bc6 {[%clk 0:02:25.4]} 26. Qxc7 {[%clk 0:02:00.6]}
26... Rxc7 {[%clk 0:02:26.3]} 27. Rd6 {[%clk 0:02:00.5]} 27... Kf8 {[%clk
0:02:23.1]} 28. Red1 {[%clk 0:01:58.7]} 28... Ke7 {[%clk 0:02:23.3]} 29. Bf1
{[%clk 0:01:49.6]} 29... Rd7 {[%clk 0:02:20.4]} 30. Rxd7+ {[%clk 0:01:34.9]}
30... Bxd7 {[%clk 0:02:21.3]} 31. Rd6 {[%clk 0:01:35]} 31... Bc6 {[%clk
0:02:21.2]} 32. Bxa6 {[%clk 0:01:35.3]} 32... bxa6 {[%clk 0:01:11.8]} 33. Rxc6
{[%clk 0:01:35.3]} 33... Rxb4 {[%clk 0:01:12.5]} 34. Rxa6 {[%clk 0:01:35.8]}
34... Rc4 {[%clk 0:01:13.2]} 35. c6 {[%clk 0:01:30.6]} 35... Kd6 {[%clk
0:01:04]} 36. Ra7 {[%clk 0:01:22.9]} 36... f5 {[%clk 0:00:40]} 37. Rd7+ {[%clk
0:01:10.5]} 37... Kxc6 {[%clk 0:00:39.6]} 38. Rxg7 {[%clk 0:01:11.1]} 38... Ra4
{[%clk 0:00:36.1]} 39. Kg2 {[%clk 0:01:05.6]} 39... Rxa5 {[%clk 0:00:35.5]} 40.
Rg6 {[%clk 0:01:06.2]} 40... h5 {[%clk 0:00:35.4]} 41. Rxe6+ {[%clk 0:01:06]}
41... Kd5 {[%clk 0:00:35.4]} 42. Rh6 {[%clk 0:01:06.2]} 42... Ke5 {[%clk
0:00:35.8]} 43. Rxh5 {[%clk 0:01:06.5]} 43... Ra4 {[%clk 0:00:36.7]} 44. Rh3
{[%clk 0:01:06.1]} 44... Rb4 {[%clk 0:00:33.5]} 45. Rh5 {[%clk 0:01:06.2]} 45...
Rg4 {[%clk 0:00:32.2]} 46. h3 {[%clk 0:01:05.8]} 46... Rb4 {[%clk 0:00:30.8]}
47. g4 {[%clk 0:01:06.2]} 1-0

[Event "*** SCC Grand Prix: Titled Tuesday Blitz"]
[Site "Chess.com"]
[Date "2020.06.23"]
[Round "7"]
[White "IMHansNiemann"]
[Black "swisspower96"]
[Result "1-0"]
[WhiteElo "2959"]
[BlackElo "2623"]
[TimeControl "180+1"]
[EndTime "11:16:48 PDT"]
[Termination "IMHansNiemann won by resignation"]

1. d4 {[%clk 0:03:00.9]} 1... Nf6 {[%clk 0:02:54.7]} 2. Nc3 {[%clk 0:03:00.8]}
2... e6 {[%clk 0:02:53.9]} 3. e4 {[%clk 0:02:58.4]} 3... d5 {[%clk 0:02:54.1]}
4. e5 {[%clk 0:02:58.3]} 4... Nfd7 {[%clk 0:02:54.4]} 5. f4 {[%clk 0:02:58.1]}
5... c5 {[%clk 0:02:54.2]} 6. Nf3 {[%clk 0:02:58.6]} 6... a6 {[%clk 0:02:53.6]}
7. Be3 {[%clk 0:02:58.6]} 7... Nc6 {[%clk 0:02:54]} 8. Qd2 {[%clk 0:02:52.8]}
8... Be7 {[%clk 0:02:54.3]} 9. Be2 {[%clk 0:02:52.4]} 9... b5 {[%clk 0:02:49.8]}
10. Nd1 {[%clk 0:02:51.8]} 10... cxd4 {[%clk 0:02:45.2]} 11. Nxd4 {[%clk
0:02:50.7]} 11... Bb7 {[%clk 0:02:45.8]} 12. c3 {[%clk 0:02:46.8]} 12... Nc5
{[%clk 0:02:45.9]} 13. Nf2 {[%clk 0:02:45.3]} 13... O-O {[%clk 0:02:45.2]} 14.
O-O {[%clk 0:02:45.1]} 14... Qc7 {[%clk 0:02:27.2]} 15. Nxc6 {[%clk 0:02:43.8]}
15... Bxc6 {[%clk 0:02:24.9]} 16. Bd4 {[%clk 0:02:44]} 16... Rfd8 {[%clk
0:02:16.5]} 17. Qe3 {[%clk 0:02:43.4]} 17... Ne4 {[%clk 0:02:16.9]} 18. Nxe4
{[%clk 0:02:42.3]} 18... dxe4 {[%clk 0:02:14.2]} 19. f5 {[%clk 0:02:40.6]} 19...
exf5 {[%clk 0:02:09.9]} 20. Rxf5 {[%clk 0:02:39.3]} 20... Qc8 {[%clk 0:01:51.3]}
21. Raf1 {[%clk 0:02:36.5]} 21... Rf8 {[%clk 0:01:46.6]} 22. Qg3 {[%clk
0:02:33.1]} 22... Qe6 {[%clk 0:01:16.4]} 23. Bg4 {[%clk 0:02:29.8]} 23... Qg6
{[%clk 0:01:14.6]} 24. h4 {[%clk 0:02:21.2]} 24... Bd7 {[%clk 0:00:55.4]} 25. e6
{[%clk 0:01:57.8]} 25... fxe6 {[%clk 0:00:40.3]} 26. h5 {[%clk 0:01:54.8]} 26...
Qh6 {[%clk 0:00:38.2]} 27. Be3 {[%clk 0:01:41.3]} 27... exf5 {[%clk 0:00:34.9]}
28. Bxh6 {[%clk 0:01:37.2]} 28... fxg4 {[%clk 0:00:35.3]} 29. Rxf8+ {[%clk
0:01:33.5]} 29... Rxf8 {[%clk 0:00:35.4]} 30. Qe5 {[%clk 0:01:27.5]} 30... Bf6
{[%clk 0:00:21.9]} 31. Qd5+ {[%clk 0:01:25]} 31... Rf7 {[%clk 0:00:22.4]} 32.
Be3 {[%clk 0:01:25]} 32... g3 {[%clk 0:00:18.7]} 33. Bc5 {[%clk 0:01:19.5]}
33... h6 {[%clk 0:00:17]} 34. Qa8+ {[%clk 0:01:17.3]} 34... Kh7 {[%clk
0:00:17.1]} 35. Qxe4+ {[%clk 0:01:17.2]} 35... Kg8 {[%clk 0:00:17.6]} 36. Bd6
{[%clk 0:01:15.8]} 36... Bg5 {[%clk 0:00:10.9]} 37. Bxg3 {[%clk 0:01:13.2]}
37... Bf5 {[%clk 0:00:11.2]} 38. Qd5 {[%clk 0:01:12.2]} 38... Bd7 {[%clk
0:00:04.6]} 39. Bd6 {[%clk 0:01:07.6]} 39... Be8 {[%clk 0:00:04.7]} 40. Qa8
{[%clk 0:01:03.3]} 40... Be3+ {[%clk 0:00:04.9]} 41. Kh2 {[%clk 0:01:02.5]} 1-0